[Event "Grand Prix Romania 1st Stage 2024"]
[Site "Bucuresti"]
[Date "2024.03.24"]
[Round "8.8"]
[White "Ponomariov, Ruslan"]
[Black "Zajic, Milan"]
[Result "1-0"]
[ECO "E49"]
[WhiteElo "2646"]
[BlackElo "2436"]
[Annotator "TA"]
[PlyCount "167"]
[EventDate "2024.03.20"]
[EventType "swiss"]
[EventCountry "ROU"]
[SourceTitle "playchess.com"]
[Source "ChessBase"]
[SourceQuality "1"]
[TimeControl "900+5"]

{[%evp 19,167,7,3,0,0,4,0,10,47,19,45,51,37,18,47,60,46,37,47,50,52,15,58,25,24,25,29,23,39,9,24,7,39,50,43,4,0,7,0,19,21,22,30,0,5,0,0,0,8,0,31,27,80,72,72,72,72,72,72,72,83,72,56,53,53,0,27,0,129,104,107,27,23,41,68,52,60,60,60,45,45,45,44,0,0,-13,13,13,14,14,15,15,14,10,10,10,12,8,8,8,38,8,8,8,9,0,0,0,10,10,26,26,32,0,0,0,40,40,40,40,40,40,40,40,40,40,40,40,40,40,45,40,66,59,59,59,59,8,8,8,29971,29964,29972,29966,29972,29959,29984,29985,29986,29987]} 1. d4 {[%emt 0:00:02]} Nf6 {[%emt 0:00:01]} 2. c4 {[%emt 0:00:01]} e6 {[%emt 0:00:01]} 3. Nc3 {[%emt 0:00:02]} Bb4 {[%emt 0:00:01]} 4. e3 {[%emt 0:00:02]} O-O {[%emt 0:00:03]} 5. Bd3 {[%emt 0:00:08]} c5 {[%emt 0:00:22]} 6. a3 {[%emt 0:00:04]} Bxc3+ {[%emt 0:01:20]} 7. bxc3 {[%emt 0:00:02]} d5 {[%emt 0:00:01]} 8. cxd5 {[%emt 0:00:07]} exd5 {[%emt 0:00:17]} 9. Ne2 {[%emt 0:00:08]} b6 {[%emt 0:01:02]} 10. O-O {[%emt 0:00:03]} Ba6 {[%emt 0:00:01]} 11. dxc5 {[%emt 0:00:32]} bxc5 {[%emt 0:00:30]} 12. Bxa6 {[%emt 0:00:03]} Nxa6 {[%emt 0:00:02]} 13. c4 {[%emt 0:00:02] Die Stellung ist ausgeglichen.} Rb8 {[%emt 0:03:26]} 14. Qa4 {[%emt 0:00:58]} Qb6 {[%emt 0:00:43]} 15. cxd5 {[%emt 0:00:30]} Nxd5 {[%emt 0:00:06]} 16. Rd1 {[%emt 0:01:46]} Nf6 {[%emt 0:02:44]} 17. Bd2 {[%emt 0:02:09]} Qb5 {[%emt 0:00:46]} 18. Nc3 {[%emt 0:01:00]} Qxa4 {[%emt 0:00:32]} 19. Nxa4 {[%emt 0:00:01]} Rfc8 {[%emt 0:01:12]} 20. f3 {[%emt 0:00:43]} c4 {[%emt 0:00:10]} 21. Bc3 {[%emt 0:00:25]} Rb3 {[%emt 0:00:44]} 22. Bd4 {[%emt 0:01:07] Verhindert Nc5.} h6 {[%emt 0:00:45]} 23. e4 {[%emt 0:01:15][%cal Od1c1]} (23. Bxa7 c3 24. Bd4 c2 $15) 23... c3 {[%emt 0:00:24]} 24. Rd3 {[%emt 0:00:13][%cal Rd3c3]} (24. Bxa7 $2 c2 25. Rdc1 Rc4 $19) (24. Nxc3 Rcxc3 25. Bxc3 Rxc3 $16) 24... Rc4 $1 {[%emt 0:00:21]} 25. Nxc3 {[%emt 0:00:02][%cal Od4f6]} (25. Rxc3 Rbxc3 (25... Rxa4 26. Bxf6 Rxc3 27. Bxc3 $16) (25... Rxd4 26. Rxb3 Rxa4 27. Rc1 $11) 26. Nxc3 Rxd4 $19) 25... Rxd4 {[%emt 0:00:21]} 26. Rxd4 {[%emt 0:00:02]} Rxc3 {[%emt 0:00:01]} 27. Ra4 {[%emt 0:00:27]} Rc6 {[%emt 0:00:24]} 28. Rd1 {[%emt 0:00:04]} Kf8 {[%emt 0:00:27]} 29. Rd8+ {[%emt 0:00:42]} Ke7 {[%emt 0:00:09]} 30. Ra8 {[%emt 0:00:01][%mdl 1024] Weiss hat Kompensation.} Nd7 {[%emt 0:00:14]} 31. Rxa7 {[%emt 0:00:06]} Rc1+ {[%emt 0:00:04]} 32. Kf2 {[%emt 0:00:02]} Nac5 {[%emt 0:00:01]} 33. Rd4 {[%emt 0:00:11]} Rc2+ {[%emt 0:00:01]} 34. Kf1 {[%emt 0:00:48]} Rc1+ {[%emt 0:00:01]} 35. Ke2 {[%emt 0:00:03]} Ra1 {[%emt 0:00:21]} (35... Rg1 $1 $11 {hält das Gleichgewicht.}) 36. Rd1 $16 {[%emt 0:00:49]} Ra2+ {[%emt 0:00:02]} 37. Rd2 {[%emt 0:00:01]} Ra1 {[%emt 0:00:01]} 38. h4 {[%emt 0:00:21]} h5 {[%emt 0:00:07]} 39. Rd5 {[%emt 0:00:26][%csl LRc5,LRh5]} Ra2+ {[%emt 0:00:02]} 40. Ke3 {[%emt 0:00:30] Weiß steht aktiver.} Ke6 {[%emt 0:00:09]} 41. Rxh5 {[%emt 0:00:02]} Rxg2 {[%emt 0:00:03]} 42. Rg5 {[%emt 0:00:06]} ({Vorzuziehen ist} 42. Rd5 $14) 42... Rh2 {[%emt 0:00:11]} 43. Ra5 {[%emt 0:00:33]} Nb7 {[%emt 0:00:20] [#]} (43... Rc2 $11 {bleibt in der Remisbreite.}) 44. Ra6+ $1 {[%emt 0:00:21]} Ke7 {[%emt 0:00:01]} 45. Rxg7 {[%emt 0:00:39]} (45. Ra7 $16 Nd6 46. Re5+ (46. Rxg7 Rxh4 47. Rg5 Ke6 $14) 46... Kf6 47. Rd5 Nc4+ 48. Kf4 (48. Kd4 Nce5 $16)) 45... Rxh4 {[%emt 0:00:05]} 46. Rg5 {[%emt 0:00:20]} Rh1 {[%emt 0:00:08]} 47. Rd5 {[%emt 0:00:07]} Nbc5 {[%emt 0:00:03]} 48. Ra7 {[%emt 0:00:03]} Ke6 {[%emt 0:00:01]} 49. Ra8 {[%emt 0:00:03]} Ke7 {[%emt 0:00:02] Pariert Re8+.} 50. a4 {[%emt 0:00:09]} Ra1 {[%emt 0:00:02]} 51. a5 {[%emt 0:00:01]} Ra3+ {[%emt 0:00:01]} 52. Ke2 {[%emt 0:00:06]} Ra2+ {[%emt 0:00:10]} 53. Rd2 {[%emt 0:00:13]} Ra3 {[%emt 0:00:05]} 54. Ra7 {[%emt 0:00:22]} Ke6 {[%emt 0:00:01]} 55. Rd5 {[%emt 0:00:04] Schwarz sollte Rc7 verhindern.} Ra2+ $1 {[%emt 0:00:04]} 56. Ke3 {[%emt 0:00:01]} Ra3+ {[%emt 0:00:01]} 57. Kd4 {[%emt 0:00:14]} Ra4+ {[%emt 0:00:16]} 58. Kc3 {[%emt 0:00:01] Und jetzt Rc7 wäre schön.} Ra3+ {[%emt 0:00:01]} 59. Kb4 {[%emt 0:00:03]} Rb3+ {[%emt 0:00:15]} 60. Kc4 {[%emt 0:00:01]} Rb1 {[%emt 0:00:03]} 61. a6 {[%emt 0:00:08]} ({Natürlich nicht} 61. Rxc5 Rc1+ 62. Kb4 Nxc5 $17 (62... Rxc5 $2 {geht unter.} 63. Rxd7 Rg5 64. Rd5 $18)) 61... Rc1+ {[%emt 0:00:04]} 62. Kb5 {[%emt 0:00:02]} Rb1+ {[%emt 0:00:00]} 63. Kc4 {[%emt 0:00:12]} Rc1+ {[%emt 0:00:01]} 64. Kd4 {[%emt 0:00:08]} Rd1+ {[%emt 0:00:03]} 65. Ke3 {[%emt 0:00:03] Sehr scharf!} Ra1 {[%emt 0:00:02]} 66. Kf4 {[%emt 0:00:05]} Ra3 {[%emt 0:00:06]} 67. Rc7 {[%emt 0:00:07]} Rxa6 {[%emt 0:00:21]} 68. Rcxc5 {[%emt 0:00:07]} ({Keinesfalls} 68. Rdxc5 Nxc5 69. Rxc5 Kf6 $16) 68... Nxc5 {[%emt 0:00:01]} 69. Rxc5 $11 {[%emt 0:00:01][%mdl 4096] Endspiel. KR-KR} Ra3 {[%emt 0:00:01]} 70. Rc6+ {[%emt 0:00:03]} Kd7 {[%emt 0:00:02]} 71. Rb6 {[%emt 0:00:03]} Ke7 {[%emt 0:00:02]} 72. e5 {[%emt 0:00:01]} Rc3 {[%emt 0:00:19]} 73. Ke4 {[%emt 0:00:01]} Ra3 {[%emt 0:00:05]} 74. f4 {[%emt 0:00:01]} Ra4+ {[%emt 0:00:02]} 75. Kf5 {[%emt 0:00:03]} Rc4 {[%emt 0:00:05]} 76. Rb7+ {[%emt 0:00:03]} (76. Kg5 $5 Rc5 $8 77. Ra6 $11) 76... Kf8 {[%emt 0:00:01]} 77. Kg5 {[%emt 0:00:02] f5 wäre nun fies.} Re4 {[%emt 0:00:14]} 78. f5 {[%emt 0:00:27]} (78. Ra7 $14) 78... Rxe5 {[%emt 0:00:01]} 79. Kf6 {[%emt 0:00:00][%csl LRe5,LRf7]} Re8 $2 {[%emt 0:00:12][%mdl 8192] [#] Das Aus für Schwarz.} (79... Re3 $11) 80. Rxf7+ {[%emt 0:00:04] Weiß setzt Matt.} Kg8 {[%emt 0:00:01]} 81. Rg7+ {[%emt 0:00:03]} Kf8 {[%emt 0:00:01]} 82. Ra7 {[%emt 0:00:03]} Kg8 {[%emt 0:00:12]} 83. Kg6 {[%emt 0:00:01]} Rd8 {[%emt 0:00:05]} 84. f6 {[%emt 0:00:01] Gewichteter Fehlerwert: Weiß=0.12 (sehr präzise) /Schwarz=0.12 (sehr präzise) .  Verlustzug:     	---       	Schwarz=1     Fehler:       	Weiß=3     	Schwarz=2     Ungenau:       	Weiß=10    	Schwarz=11    OK:         	Weiß=25    	Schwarz=28    Bester:       	Weiß=2     	Schwarz=6     Stark:        	Weiß=1     	Schwarz=2} 1-0

[Event "Grand Prix Romania 1st Stage 2024"]
[Site "Bucuresti"]
[Date "2024.03.24"]
[Round "8.9"]
[White "Bulmaga, Irina"]
[Black "Safarli, Eltaj"]
[Result "1-0"]
[ECO "B44"]
[WhiteElo "2429"]
[BlackElo "2614"]
[Annotator "TA"]
[PlyCount "63"]
[EventDate "2024.03.20"]
[EventType "swiss"]
[EventCountry "ROU"]
[SourceTitle "playchess.com"]
[Source "ChessBase"]
[SourceQuality "1"]
[TimeControl "900+5"]

{[%evp 9,63,15,17,1,0,8,28,32,17,22,40,42,56,56,52,48,58,57,88,72,82,79,97,102,84,70,89,86,122,135,539,541,537,556,541,564,567,552,605,516,606,604,585,586,606,583,605,633,610,636,738,717,757,753,682,666]} 1. e4 {[%emt 0:00:03]} c5 {[%emt 0:00:05]} 2. Nf3 {[%emt 0:00:02]} e6 {[%emt 0:00:04]} 3. d4 {[%emt 0:00:02]} cxd4 {[%emt 0:00:03]} 4. Nxd4 {[%emt 0:00:02]} Nc6 {[%emt 0:00:07]} 5. Bf4 {[%emt 0:00:05]} d6 {[%emt 0:00:59]} 6. Nxc6 {[%emt 0:00:04]} bxc6 {[%emt 0:00:02]} 7. Bd3 {[%emt 0:00:03]} Ne7 {[%emt 0:00:36][%cal Bg8e7,Be7g6,Bg6h4][%mdl 32]} 8. O-O {[%emt 0:00:17] Weiß hat minimalen Vorteil.} Ng6 {[%emt 0:00:02]} 9. Be3 {[%emt 0:00:18]} e5 {[%emt 0:01:11]} 10. c4 {[%emt 0:00:09]} Be7 {[%emt 0:00:03]} 11. Qd2 {[%emt 0:01:14]} O-O {[%emt 0:00:24]} 12. Nc3 {[%emt 0:00:03]} Nh4 {[%emt 0:00:45][%cal Oc8h3] [#] Droht ...Bh3! und aus.} 13. f3 {[%emt 0:01:16]} f5 {[%emt 0:00:11]} 14. b4 {[%emt 0:00:17] Weiß steht aktiver.} Be6 {[%emt 0:02:50]} 15. b5 {[%emt 0:01:17]} Qd7 {[%emt 0:02:02]} 16. bxc6 {[%emt 0:00:37]} Qxc6 {[%emt 0:00:01]} 17. Nd5 {[%emt 0:00:06]} Bxd5 {[%emt 0:00:10]} 18. cxd5 {[%emt 0:00:07]} Qa4 {[%emt 0:00:30]} 19. Rab1 {[%emt 0:00:53] Und jetzt Bb5 wäre schön.} fxe4 $2 {[%emt 0:00:39][%mdl 8192] [#] Das kostet Schwarz die Partie.} (19... f4 $16 {ist zäher.} 20. Bf2 Rfb8) 20. Bb5 $1 $18 {[%emt 0:00:44] Das Läuferpaar ist gut. Weiß steht klar auf Gewinn.} ({Schwächer ist} 20. Bxe4 Nf5 $16) (20. fxe4 Rxf1+ 21. Rxf1 Ng6 $14) 20... Qa3 {[%emt 0:00:35]} 21. Rb3 {[%emt 0:00:04]} Qxb3 {[%emt 0:00:06]} 22. axb3 {[%emt 0:00:03]} exf3 {[%emt 0:00:02]} 23. g3 {[%emt 0:00:45]} Rab8 {[%emt 0:02:08]} 24. Bc4 {[%emt 0:00:16]} Ng6 {[%emt 0:00:15]} 25. Qd3 {[%emt 0:00:27]} e4 {[%emt 0:00:57]} 26. Qxe4 {[%emt 0:00:03]} Ne5 {[%emt 0:00:03]} 27. Bd4 {[%emt 0:00:20]} Bf6 {[%emt 0:00:05]} 28. Bxe5 {[%emt 0:00:08]} Bxe5 {[%emt 0:00:01]} 29. Rxf3 {[%emt 0:00:05]} Rfe8 {[%emt 0:00:07]} 30. Qf5 {[%emt 0:00:15]} Rb7 {[%emt 0:00:25]} 31. Kg2 {[%emt 0:00:17]} g6 {[%emt 0:00:04]} 32. Qg4 {[%emt 0:00:11] Gewichteter Fehlerwert: Weiß=0.08 (makellos) /Schwarz=0.44.  Verlustzug:     	---       	Schwarz=1     Ungenau:       	---       	Schwarz=2     OK:         	Weiß=12    	Schwarz=7     Bester:       	Weiß=1     	---        Stark:        	Weiß=1     	---} 1-0

[Event "Grand Prix Romania 1st Stage 2024"]
[Site "Bucuresti"]
[Date "2024.03.24"]
[Round "8.10"]
[White "Kuzubov, Yuriy"]
[Black "Costachi, Mihnea"]
[Result "0-1"]
[ECO "B07"]
[WhiteElo "2605"]
[BlackElo "2470"]
[Annotator "TA"]
[PlyCount "110"]
[EventDate "2024.03.20"]
[EventType "swiss"]
[EventCountry "ROU"]
[SourceTitle "playchess.com"]
[Source "ChessBase"]
[SourceQuality "1"]
[TimeControl "900+5"]

{[%evp 45,110,0,12,-50,12,-14,-16,-17,-17,-12,-11,-22,0,0,0,0,10,-10,0,-27,0,-33,-20,-70,-48,-75,-64,-74,-60,-73,-57,-85,-51,-66,-79,-120,-120,-157,-166,-208,-35,-219,-123,-97,-10,-8,-4,-8,0,0,0,0,0,0,0,0,0,0,0,0,0,0,0,-1110,-1109,-1119,-1095]} 1. d4 {[%emt 0:00:03]} Nf6 {[%emt 0:00:02]} 2. Nf3 {[%emt 0:00:02]} g6 {[%emt 0:00:03]} 3. Nbd2 {[%emt 0:00:01]} Bg7 {[%emt 0:00:14]} 4. e4 {[%emt 0:00:02]} d6 {[%emt 0:00:01]} 5. Be2 {[%emt 0:00:03]} O-O {[%emt 0:00:05]} 6. O-O {[%emt 0:00:03]} e5 {[%emt 0:02:18] B07: Pirc Defence: Miscellaneous Systems.} 7. dxe5 {[%emt 0:00:25]} dxe5 {[%emt 0:00:01]} 8. c3 {[%emt 0:00:23]} Qe7 {[%emt 0:00:24]} 9. Qc2 {[%emt 0:00:11]} Nh5 {[%emt 0:01:00]} 10. Re1 {[%emt 0:00:07]} Nc6 {[%emt 0:00:29]} 11. Nc4 {[%emt 0:00:22]} Nf4 {[%emt 0:00:22]} 12. Bf1 {[%emt 0:00:44]} Bg4 {[%emt 0:00:18]} 13. Nfd2 {[%emt 0:00:12]} Rad8 $146 {[%emt 0:00:21]} ({Predecessor:} 13... Be6 14. b4 a6 15. a4 Rfd8 16. Ne3 Qg5 17. Nf3 Qh5 18. Bb2 Rd7 19. Rad1 Rad8 20. Rxd7 Rxd7 {1-0 Kuzubov,Y (2605)-Rozman,L (2322) Titled Tuesday intern op 27th Feb Late blitz 2024 (3)}) 14. Ne3 {[%emt 0:00:43]} Be6 {[%emt 0:00:24]} 15. Nf3 {[%emt 0:01:41]} Qf6 {[%emt 0:02:38]} 16. Kh1 {[%emt 0:01:32]} Ne7 {[%emt 0:01:05]} 17. Ng1 {[%emt 0:01:25]} Rd7 {[%emt 0:01:04]} 18. g3 {[%emt 0:00:10]} Nh5 {[%emt 0:00:05]} 19. Bg2 {[%emt 0:01:14]} Rfd8 {[%emt 0:00:38]} 20. Nf3 {[%emt 0:00:06]} h6 {[%emt 0:01:19]} 21. Kg1 {[%emt 0:00:19]} Nc6 {[%emt 0:00:50]} 22. Nd2 {[%emt 0:01:02]} Qe7 {[%emt 0:00:20]} 23. Nd5 {[%emt 0:01:27]} Qe8 {[%emt 0:00:16]} 24. Nc4 {[%emt 0:02:40]} ({White should try} 24. b4 $11) 24... Ne7 {[%emt 0:00:04]} (24... f5 $15) 25. Nce3 {[%emt 0:00:12]} c6 {[%emt 0:00:09]} 26. Nxe7+ {[%emt 0:00:06]} Qxe7 {[%emt 0:00:02]} 27. Bf1 {[%emt 0:00:13]} Nf6 {[%emt 0:00:21]} 28. Nc4 {[%emt 0:00:23]} Bg4 {[%emt 0:00:37]} 29. Be3 {[%emt 0:00:38]} Qe6 {[%emt 0:00:24]} 30. Nd2 {[%emt 0:00:19]} Bf8 {[%emt 0:00:30]} 31. Bc4 {[%emt 0:00:28]} Qe8 {[%emt 0:00:36]} 32. b4 {[%emt 0:00:12]} b6 {[%emt 0:00:23]} 33. a4 {[%emt 0:00:06]} Be6 {[%emt 0:00:02]} 34. Bxe6 {[%emt 0:00:10]} (34. Bf1 $11) 34... Qxe6 $15 {[%emt 0:00:01]} 35. f3 {[%emt 0:00:07]} c5 {[%emt 0:00:02]} 36. b5 {[%emt 0:00:05]} c4 {[%emt 0:00:01]} 37. Nf1 {[%emt 0:00:05]} Rd3 {[%emt 0:00:07]} 38. a5 {[%emt 0:00:02]} Nd7 {[%emt 0:00:11]} 39. axb6 {[%emt 0:00:03]} axb6 {[%emt 0:00:01]} 40. Kg2 {[%emt 0:00:11]} Nc5 {[%emt 0:00:12]} 41. Bf2 {[%emt 0:00:02]} h5 {[%emt 0:00:11]} 42. Rad1 {[%emt 0:00:03]} Qd7 $2 {[%emt 0:00:06]} (42... h4 $1 $19 {[%cal Rh4h3]} 43. gxh4 Nxe4 44. Bxb6 Qxb6 45. fxe4 Qxb5 46. Rxd3 cxd3) 43. Rxd3 $2 {[%emt 0:00:08]} (43. Ne3 $15) 43... cxd3 {[%emt 0:00:05]} ({Not} 43... Qxd3 44. Re2 $15) ({Black should play} 43... Nxd3 $19 44. Rb1 Nxf2 45. Qxf2 Qd3) 44. Qb1 $17 {[%emt 0:00:04]} Qe6 {[%emt 0:00:09]} (44... g5 $17 {Threatening ...g4.} 45. h3 g4 46. hxg4 hxg4 47. Bxc5 gxf3+ (47... Bxc5 48. Nd2 $17) (47... bxc5 48. Ne3 $11) 48. Kxf3 Bxc5) 45. Rd1 $1 $11 {[%emt 0:00:08]} Rc8 {[%emt 0:00:13]} 46. Bxc5 {[%emt 0:00:05]} Bxc5 {[%emt 0:00:02]} (46... Rxc5 {simplifies} 47. Rxd3 Bh6 48. Ne3 Bxe3 49. Rxe3 Qc4) 47. Qxd3 {[%emt 0:00:03]} Qb3 {[%emt 0:00:02]} 48. c4 {[%emt 0:00:05]} Qa2+ {[%emt 0:00:06]} 49. Rd2 {[%emt 0:00:02]} Qa1 {[%emt 0:00:01]} 50. Rd1 {[%emt 0:00:07]} Qa2+ {[%emt 0:00:01]} 51. Rd2 {[%emt 0:00:05]} Qa1 {[%emt 0:00:01]} 52. Ne3 {[%emt 0:00:04]} Ra8 {[%emt 0:00:08]} 53. Nd5 {[%emt 0:00:05]} Kg7 {[%emt 0:00:05]} 54. Rd1 $2 {[%emt 0:00:08][%mdl 8192]} (54. Qf1 $11) 54... Ra2+ $19 {[%emt 0:00:04]} 55. Kh3 {[%emt 0:00:06]} Qb2 {[%emt 0:00:02]} 0-1

[Event "Grand Prix Romania 1st Stage 2024"]
[Site "Bucuresti"]
[Date "2024.03.24"]
[Round "8.11"]
[White "Soltanici, Ruslan"]
[Black "Brunello, Sabino"]
[Result "0-1"]
[ECO "B49"]
[WhiteElo "2339"]
[BlackElo "2515"]
[Annotator "TA"]
[PlyCount "74"]
[EventDate "2024.03.20"]
[EventType "swiss"]
[EventCountry "ROU"]
[SourceTitle "playchess.com"]
[Source "ChessBase"]
[SourceQuality "1"]
[TimeControl "900+5"]

{[%evp 18,74,26,22,42,0,0,-15,32,30,52,35,36,22,43,32,65,52,56,56,70,0,0,0,0,-14,-19,-33,-24,-16,0,0,28,16,94,74,72,78,59,60,89,0,10,10,3,-596,-416,-447,-426,-715,-710,-1721,-1403,-1927,-1829,-6087,-6087,-5172,-1945]} 1. e4 {[%emt 0:00:03]} c5 {[%emt 0:00:00]} 2. Nc3 {[%emt 0:00:07]} e6 {[%emt 0:00:07]} 3. Nf3 {[%emt 0:00:03]} Nc6 {[%emt 0:00:03]} 4. d4 {[%emt 0:00:04]} cxd4 {[%emt 0:00:04]} 5. Nxd4 {[%emt 0:00:02]} Qc7 {[%emt 0:00:01]} 6. Be2 {[%emt 0:01:10]} a6 {[%emt 0:00:10]} 7. O-O {[%emt 0:00:04]} Nf6 {[%emt 0:00:20]} 8. Be3 {[%emt 0:00:10]} b5 {[%emt 0:00:12]} 9. Nxc6 {[%emt 0:05:31]} dxc6 {[%emt 0:00:08]} 10. f4 {[%emt 0:00:44]} e5 {[%emt 0:01:14]} 11. Kh1 {[%emt 0:00:50]} Bd6 {[%emt 0:01:12]} 12. f5 {[%emt 0:00:06]} h5 {[%emt 0:00:11]} (12... Bb7 $11) 13. Bf3 $14 {[%emt 0:00:50]} h4 {[%emt 0:00:04]} 14. a4 {[%emt 0:00:06] Hoping for axb5.} Bb7 {[%emt 0:01:06]} 15. Qe2 {[%emt 0:00:22]} Rd8 {[%emt 0:01:17]} 16. Qf2 {[%emt 0:00:29]} Nd7 {[%emt 0:00:56]} 17. Rfd1 {[%emt 0:00:44]} Be7 {[%emt 0:00:06]} 18. axb5 {[%emt 0:00:28]} axb5 {[%emt 0:00:03]} 19. Rd3 {[%emt 0:01:54]} (19. h3 $14) 19... b4 $11 {[%emt 0:01:24]} 20. Nb1 {[%emt 0:00:20]} c5 {[%emt 0:00:07]} 21. b3 {[%emt 0:00:11]} c4 {[%emt 0:00:30]} 22. bxc4 {[%emt 0:01:00]} Qxc4 {[%emt 0:00:02][%cal Od8c8]} 23. Ra7 {[%emt 0:00:05]} Qc8 {[%emt 0:00:20]} 24. c3 {[%emt 0:00:21]} h3 {[%emt 0:01:25]} 25. cxb4 {[%emt 0:00:13]} hxg2+ {[%emt 0:00:08]} (25... Qc4 $11 {keeps the balance.} 26. Rd1 Qxb4) 26. Kxg2 {[%emt 0:00:28]} (26. Qxg2 {with more complications.} Qc4 27. Rd1 Qb3 28. Re1) 26... O-O {[%emt 0:00:32]} 27. Rc3 {[%emt 0:00:32]} Qb8 {[%emt 0:00:05][%cal Od7f6]} 28. Qc2 {[%emt 0:00:07]} Nf6 {[%emt 0:01:15][%cal Od8d7] [#]} (28... Bxb4 $2 29. Rb3 $18) 29. Nd2 {[%emt 0:00:18]} ({Much worse is} 29. Rc7 Rc8 30. Rc4 (30. Raxb7 $2 {perishes.} Qxb7 31. Rxb7 Rxc2+ 32. Nd2 Bd6 $19) 30... Bxb4 $15) (29. b5 $1 $16) 29... Rxd2+ {[%emt 0:00:34]} 30. Qxd2 {[%emt 0:00:05] Threatens to win with Qc2.} Bxb4 {[%emt 0:00:01][%cal Ob7e4] [#]} 31. Ra1 $2 {[%emt 0:00:06][%mdl 8192] White does not recover from this.} Nxe4 {[%emt 0:00:08]} 32. Bxe4 {[%emt 0:00:03]} Bxe4+ {[%emt 0:00:00] Black is clearly winning.} 33. Kg3 {[%emt 0:00:07]} (33. Kg1 $142) 33... Rd8 $19 {[%emt 0:00:10]} 34. Rb3 {[%emt 0:00:03]} Rxd2 {[%emt 0:01:40]} 35. Bxd2 {[%emt 0:00:01]} Qd8 {[%emt 0:00:01]} 36. Bxb4 {[%emt 0:00:09]} Qg5+ {[%emt 0:00:27]} 37. Kf2 {[%emt 0:00:02]} Qg2+ {[%emt 0:00:05] Weighted Error Value: White=1.09/Black=0.26 (precise) .  Loses game:     	White=1     	---        Mistake:       	White=3     	Black=2      Inaccurate:     	White=2     	Black=4      OK:         	White=7     	Black=6      Best:        	---       	Black=2} 0-1